[Event "Titled Tuesday Blitz July 11 Early 2023"]
[White "Blokhin, Sofia"]
[Black "Mattheii"]
[WhiteFideId "4508190"]
[WhiteElo "2329"]
[BlackElo "2543"]
[Result "0-1"]
[Round "2"]
[TimeControl "180+2"]
[Date "2023.07.11"]
[WhiteClock "0:00:00"]
[BlackClock "0:00:04"]
[Board "160"]

1. d4 {[%clk 0:03:00]}  Nf6 {[%clk 0:02:59]} 2. c4 {[%clk 0:03:00]}  e6 {[%clk 0:03:00]} 3. Nc3 {[%clk 0:02:59]}  Bb4 {[%clk 0:03:00]} 4. f3 {[%clk 0:03:00]}  c5 {[%clk 0:03:00]} 5. a3 {[%clk 0:02:59]}  Bxc3+ {[%clk 0:02:58]} 6. bxc3 {[%clk 0:03:00]}  O-O {[%clk 0:02:54]} 7. e3 {[%clk 0:02:59]}  d6 {[%clk 0:02:52]} 8. Nh3 {[%clk 0:02:59]}  Nc6 {[%clk 0:02:49]} 9. Bd2 {[%clk 0:02:58]}  b6 {[%clk 0:02:49]} 10. Bd3 {[%clk 0:02:56]}  Ba6 {[%clk 0:02:45]} 11. Nf2 {[%clk 0:02:54]}  Na5 {[%clk 0:02:45]} 12. O-O {[%clk 0:02:49]}  Bxc4 {[%clk 0:02:41]} 13. Bxc4 {[%clk 0:02:47]}  Nxc4 {[%clk 0:02:42]} 14. e4 {[%clk 0:02:44]}  cxd4 {[%clk 0:02:18]} 15. cxd4 {[%clk 0:02:41]}  h6 {[%clk 0:02:16]} 16. Bf4 {[%clk 0:02:36]}  Nh5 {[%clk 0:02:01]} 17. Bc1 {[%clk 0:02:28]}  Rc8 {[%clk 0:01:59]} 18. f4 {[%clk 0:02:26]}  f5 {[%clk 0:01:31]} 19. Qxh5 {[%clk 0:02:23]}  fxe4 {[%clk 0:01:28]} 20. Nxe4 {[%clk 0:02:21]}  Rf5 {[%clk 0:01:29]} 21. Qg6 {[%clk 0:02:18]}  Qd7 {[%clk 0:01:24]} 22. Ng3 {[%clk 0:02:10]}  Rf6 {[%clk 0:01:24]} 23. Qd3 {[%clk 0:02:07]}  b5 {[%clk 0:01:20]} 24. Ne4 {[%clk 0:02:05]}  Rf5 {[%clk 0:01:20]} 25. g4 {[%clk 0:02:03]}  Rf7 {[%clk 0:01:20]} 26. Ng3 {[%clk 0:01:59]}  Rcf8 {[%clk 0:01:11]} 27. Ra2 {[%clk 0:01:54]}  Qb7 {[%clk 0:01:08]} 28. d5 {[%clk 0:01:48]}  e5 {[%clk 0:01:03]} 29. f5 {[%clk 0:01:42]}  a6 {[%clk 0:01:03]} 30. Raf2 {[%clk 0:01:37]}  Nb6 {[%clk 0:01:01]} 31. Rd1 {[%clk 0:01:30]}  Rc8 {[%clk 0:01:01]} 32. g5 {[%clk 0:01:26]}  hxg5 {[%clk 0:00:58]} 33. Bxg5 {[%clk 0:01:25]}  Rc4 {[%clk 0:00:47]} 34. f6 {[%clk 0:01:24]}  Rg4 {[%clk 0:00:45]} 35. Qf5 {[%clk 0:01:19]}  Qd7 {[%clk 0:00:45]} 36. Qxd7 {[%clk 0:00:53]}  Nxd7 {[%clk 0:00:46]} 37. Be3 {[%clk 0:00:44]}  gxf6 {[%clk 0:00:32]} 38. Kf1 {[%clk 0:00:42]}  Rh7 {[%clk 0:00:16]} 39. Ke2 {[%clk 0:00:39]}  Ra4 {[%clk 0:00:16]} 40. Rd3 {[%clk 0:00:37]}  Kf8 {[%clk 0:00:16]} 41. Nf5 {[%clk 0:00:37]}  Nc5 {[%clk 0:00:14]} 42. Rd1 {[%clk 0:00:30]}  Rxa3 {[%clk 0:00:12]} 43. Nxd6 {[%clk 0:00:30]}  Ra2+ {[%clk 0:00:12]} 44. Rd2 {[%clk 0:00:29]}  Rxd2+ {[%clk 0:00:12]} 45. Bxd2 {[%clk 0:00:29]}  Ke7 {[%clk 0:00:09]} 46. Nf5+ {[%clk 0:00:28]}  Kd7 {[%clk 0:00:10]} 47. Ng3 {[%clk 0:00:25]}  Rf7 {[%clk 0:00:07]} 48. h4 {[%clk 0:00:24]}  Nb3 {[%clk 0:00:05]} 49. h5 {[%clk 0:00:24]}  a5 {[%clk 0:00:06]} 50. h6 {[%clk 0:00:23]}  a4 {[%clk 0:00:06]} 51. Bb4 {[%clk 0:00:22]}  Nd4+ {[%clk 0:00:05]} 52. Kd3 {[%clk 0:00:21]}  f5 {[%clk 0:00:04]} 53. Bc5 {[%clk 0:00:17]}  f4 {[%clk 0:00:02]} 54. Ne4 {[%clk 0:00:16]}  Nf5 {[%clk 0:00:02]} 55. Bb4 {[%clk 0:00:13]}  Kc7 {[%clk 0:00:02]} 56. Rh2 {[%clk 0:00:11]}  Rh7 {[%clk 0:00:03]} 57. Nf6 {[%clk 0:00:11]}  Rh8 {[%clk 0:00:03]} 58. h7 {[%clk 0:00:10]}  Ng3 {[%clk 0:00:04]} 59. Ne4 {[%clk 0:00:08]}  Nf5 {[%clk 0:00:04]} 60. Ng5 {[%clk 0:00:07]}  Ng3 {[%clk 0:00:03]} 61. Nf7 {[%clk 0:00:07]}  e4+ {[%clk 0:00:03]} 62. Kd2 {[%clk 0:00:06]}  Nf1+ {[%clk 0:00:03]} 63. Kc3 {[%clk 0:00:05]}  Nxh2 {[%clk 0:00:02]} 64. Nxh8 {[%clk 0:00:06]}  f3 {[%clk 0:00:02]} 65. Ng6 {[%clk 0:00:05]}  f2 {[%clk 0:00:03]} 66. h8=Q {[%clk 0:00:05]}  f1=Q {[%clk 0:00:03]} 67. Qe5+ {[%clk 0:00:05]}  Kc8 {[%clk 0:00:02]} 68. Ne7+ {[%clk 0:00:04]}  Kd7 {[%clk 0:00:02]} 69. Qd6+ {[%clk 0:00:04]}  Ke8 {[%clk 0:00:03]} 70. Qb8+ {[%clk 0:00:04]}  Kf7 {[%clk 0:00:03]} 71. Qh8 {[%clk 0:00:02]}  Qc4+ {[%clk 0:00:03]} 72. Kd2 {[%clk 0:00:01]}  Qxb4+ {[%clk 0:00:04]} 73. Ke3 {[%clk 0:00:02]}  Qxe7 {[%clk 0:00:04]} 74. Qxh2 {[%clk 0:00:00]}  Qc5+ {[%clk 0:00:04]} 0-1


[Site "https://www.chess.com"]

[Event "Titled Tuesday Blitz July 11 Early 2023"]
[White "mjbacojo"]
[Black "Bogaudinov, Rushan"]
[BlackFideId "4129288"]
[WhiteElo "2521"]
[BlackElo "2324"]
[Result "0-1"]
[Round "2"]
[TimeControl "180+2"]
[Date "2023.07.11"]
[WhiteClock "0:01:36"]
[BlackClock "0:00:30"]
[Board "162"]

1. e4 {[%clk 0:02:59]}  c5 {[%clk 0:02:23]} 2. Nf3 {[%clk 0:02:57]}  e6 {[%clk 0:02:23]} 3. d4 {[%clk 0:02:56]}  cxd4 {[%clk 0:02:24]} 4. Nxd4 {[%clk 0:02:56]}  a6 {[%clk 0:02:24]} 5. c4 {[%clk 0:02:55]}  Nc6 {[%clk 0:02:24]} 6. Nc3 {[%clk 0:02:56]}  Nf6 {[%clk 0:02:24]} 7. Nc2 {[%clk 0:02:56]}  Qc7 {[%clk 0:02:13]} 8. Be2 {[%clk 0:02:56]}  Be7 {[%clk 0:02:11]} 9. O-O {[%clk 0:02:56]}  O-O {[%clk 0:02:11]} 10. f4 {[%clk 0:02:55]}  d6 {[%clk 0:02:11]} 11. Be3 {[%clk 0:02:54]}  b6 {[%clk 0:02:01]} 12. Rc1 {[%clk 0:02:53]}  Bb7 {[%clk 0:02:01]} 13. Nd4 {[%clk 0:02:54]}  Nxd4 {[%clk 0:02:00]} 14. Qxd4 {[%clk 0:02:54]}  d5 {[%clk 0:01:40]} 15. Qxb6 {[%clk 0:02:33]}  Qxb6 {[%clk 0:01:39]} 16. Bxb6 {[%clk 0:02:34]}  dxe4 {[%clk 0:01:35]} 17. c5 {[%clk 0:02:34]}  Nd5 {[%clk 0:01:32]} 18. b4 {[%clk 0:02:35]}  Nxb6 {[%clk 0:01:31]} 19. cxb6 {[%clk 0:02:34]}  Bxb4 {[%clk 0:01:31]} 20. Na4 {[%clk 0:02:33]}  Rac8 {[%clk 0:01:28]} 21. Rfd1 {[%clk 0:02:25]}  Rxc1 {[%clk 0:01:20]} 22. Rxc1 {[%clk 0:02:26]}  Rc8 {[%clk 0:01:20]} 23. Rd1 {[%clk 0:02:20]}  Kf8 {[%clk 0:00:57]} 24. Rd7 {[%clk 0:02:17]}  Bc6 {[%clk 0:00:51]} 25. Rc7 {[%clk 0:02:02]}  Rxc7 {[%clk 0:00:50]} 26. bxc7 {[%clk 0:02:03]}  Bb7 {[%clk 0:00:50]} 27. Kf1 {[%clk 0:02:03]}  Bd6 {[%clk 0:00:41]} 28. Nb6 {[%clk 0:01:59]}  Bxc7 {[%clk 0:00:40]} 29. Nd7+ {[%clk 0:01:59]}  Ke7 {[%clk 0:00:40]} 30. Nc5 {[%clk 0:02:00]}  Bd5 {[%clk 0:00:40]} 31. Nxa6 {[%clk 0:01:59]}  Bxf4 {[%clk 0:00:38]} 32. Nb4 {[%clk 0:01:59]}  Bxh2 {[%clk 0:00:37]} 33. a4 {[%clk 0:01:56]}  Bc7 {[%clk 0:00:35]} 34. Bb5 {[%clk 0:01:49]}  f5 {[%clk 0:00:34]} 35. Ke2 {[%clk 0:01:48]}  g5 {[%clk 0:00:34]} 36. Bc6 {[%clk 0:01:36]}  Kd6 {[%clk 0:00:30]} 0-1


[Site "https://www.chess.com"]

[Event "Titled Tuesday Blitz July 11 Early 2023"]
[White "DeyanKostov"]
[Black "Kubicka, Anna"]
[BlackFideId "1152254"]
[WhiteElo "2318"]
[BlackElo "2515"]
[Result "1-0"]
[Round "2"]
[TimeControl "180+2"]
[Date "2023.07.11"]
[WhiteClock "0:01:05"]
[BlackClock "0:01:12"]
[Board "164"]

1. d4 {[%clk 0:02:59]}  Nf6 {[%clk 0:02:59]} 2. c4 {[%clk 0:03:00]}  c5 {[%clk 0:03:00]} 3. d5 {[%clk 0:03:00]}  e6 {[%clk 0:03:00]} 4. Nc3 {[%clk 0:03:00]}  exd5 {[%clk 0:03:01]} 5. cxd5 {[%clk 0:03:01]}  d6 {[%clk 0:03:02]} 6. e4 {[%clk 0:03:02]}  g6 {[%clk 0:03:02]} 7. Nf3 {[%clk 0:03:02]}  Bg7 {[%clk 0:03:03]} 8. h3 {[%clk 0:03:03]}  O-O {[%clk 0:03:03]} 9. Bd3 {[%clk 0:03:04]}  a6 {[%clk 0:03:04]} 10. O-O {[%clk 0:03:05]}  b5 {[%clk 0:03:03]} 11. a3 {[%clk 0:03:05]}  Nbd7 {[%clk 0:03:01]} 12. Re1 {[%clk 0:03:06]}  c4 {[%clk 0:03:01]} 13. Bc2 {[%clk 0:03:06]}  Nc5 {[%clk 0:03:01]} 14. Bf4 {[%clk 0:03:03]}  Nh5 {[%clk 0:02:59]} 15. Bh2 {[%clk 0:03:02]}  Re8 {[%clk 0:02:54]} 16. Nd4 {[%clk 0:03:00]}  Qf6 {[%clk 0:02:44]} 17. Nc6 {[%clk 0:02:47]}  Nf4 {[%clk 0:02:41]} 18. Qd2 {[%clk 0:02:30]}  Nfd3 {[%clk 0:02:40]} 19. Bxd3 {[%clk 0:02:29]}  Nxd3 {[%clk 0:02:41]} 20. Re2 {[%clk 0:02:24]}  Nxb2 {[%clk 0:02:36]} 21. e5 {[%clk 0:02:24]}  dxe5 {[%clk 0:02:29]} 22. Qxb2 {[%clk 0:02:22]}  e4 {[%clk 0:02:26]} 23. Rc1 {[%clk 0:02:19]}  Bf5 {[%clk 0:02:23]} 24. Qd2 {[%clk 0:02:10]}  h5 {[%clk 0:02:09]} 25. Bf4 {[%clk 0:02:01]}  Rac8 {[%clk 0:01:55]} 26. Na2 {[%clk 0:01:42]}  Bd7 {[%clk 0:01:47]} 27. Nab4 {[%clk 0:01:27]}  a5 {[%clk 0:01:47]} 28. Nxa5 {[%clk 0:01:25]}  c3 {[%clk 0:01:38]} 29. Qe3 {[%clk 0:01:25]}  Ra8 {[%clk 0:01:27]} 30. Nac6 {[%clk 0:01:16]}  Rxa3 {[%clk 0:01:25]} 31. Rec2 {[%clk 0:01:16]}  Rea8 {[%clk 0:01:17]} 32. Be5 {[%clk 0:01:05]}  Qe7 {[%clk 0:01:12]} 33. Nxe7+ {[%clk 0:01:05]} 1-0


[Site "https://www.chess.com"]

[Event "Titled Tuesday Blitz July 11 Early 2023"]
[White "Perske, Thore"]
[Black "Samarth J Rao"]
[WhiteFideId "12902195"]
[BlackFideId "46652370"]
[WhiteElo "2514"]
[BlackElo "2314"]
[Result "1-0"]
[Round "2"]
[TimeControl "180+2"]
[Date "2023.07.11"]
[WhiteClock "0:00:04"]
[BlackClock "0:00:13"]
[Board "165"]

1. e4 {[%clk 0:03:00]}  c5 {[%clk 0:02:52]} 2. Nf3 {[%clk 0:03:00]}  d6 {[%clk 0:02:52]} 3. g3 {[%clk 0:03:00]}  Nf6 {[%clk 0:02:52]} 4. d3 {[%clk 0:02:57]}  g6 {[%clk 0:02:51]} 5. Bg2 {[%clk 0:02:57]}  Bg7 {[%clk 0:02:52]} 6. O-O {[%clk 0:02:56]}  O-O {[%clk 0:02:53]} 7. Nc3 {[%clk 0:02:52]}  Nc6 {[%clk 0:02:52]} 8. h3 {[%clk 0:02:52]}  e5 {[%clk 0:02:51]} 9. a4 {[%clk 0:02:51]}  Be6 {[%clk 0:02:50]} 10. Ng5 {[%clk 0:02:46]}  h6 {[%clk 0:02:50]} 11. Nxe6 {[%clk 0:02:39]}  fxe6 {[%clk 0:02:51]} 12. Be3 {[%clk 0:02:36]}  Nd4 {[%clk 0:02:49]} 13. Qd2 {[%clk 0:02:33]}  Kh7 {[%clk 0:02:48]} 14. Kh2 {[%clk 0:02:01]}  g5 {[%clk 0:02:41]} 15. a5 {[%clk 0:01:51]}  Qe8 {[%clk 0:02:39]} 16. Qd1 {[%clk 0:01:22]}  Qg6 {[%clk 0:02:36]} 17. Nb1 {[%clk 0:01:17]}  c4 {[%clk 0:02:27]} 18. dxc4 {[%clk 0:00:57]}  Nxe4 {[%clk 0:02:26]} 19. c3 {[%clk 0:00:28]}  Nc6 {[%clk 0:02:06]} 20. Nd2 {[%clk 0:00:23]}  Nxd2 {[%clk 0:01:57]} 21. Qxd2 {[%clk 0:00:23]}  Rad8 {[%clk 0:01:58]} 22. a6 {[%clk 0:00:19]}  d5 {[%clk 0:01:56]} 23. cxd5 {[%clk 0:00:17]}  exd5 {[%clk 0:01:50]} 24. Bc5 {[%clk 0:00:17]}  Rf7 {[%clk 0:01:42]} 25. axb7 {[%clk 0:00:17]}  Rxb7 {[%clk 0:01:43]} 26. b4 {[%clk 0:00:18]}  e4 {[%clk 0:01:35]} 27. Ra6 {[%clk 0:00:17]}  Qe8 {[%clk 0:01:34]} 28. f3 {[%clk 0:00:17]}  exf3 {[%clk 0:01:18]} 29. Rxf3 {[%clk 0:00:18]}  Ne5 {[%clk 0:01:18]} 30. Re3 {[%clk 0:00:15]}  Qb5 {[%clk 0:00:58]} 31. Qe2 {[%clk 0:00:15]}  Nc4 {[%clk 0:00:55]} 32. Ree6 {[%clk 0:00:13]}  Qd7 {[%clk 0:00:51]} 33. Qd3+ {[%clk 0:00:13]}  Kg8 {[%clk 0:00:50]} 34. Rg6 {[%clk 0:00:12]}  Ne5 {[%clk 0:00:50]} 35. Rxg7+ {[%clk 0:00:10]}  Qxg7 {[%clk 0:00:47]} 36. Qf5 {[%clk 0:00:09]}  Rf7 {[%clk 0:00:46]} 37. Qe6 {[%clk 0:00:09]}  Kh7 {[%clk 0:00:42]} 38. Bd4 {[%clk 0:00:09]}  Re7 {[%clk 0:00:36]} 39. Qf5+ {[%clk 0:00:08]}  Kg8 {[%clk 0:00:32]} 40. Rf6 {[%clk 0:00:06]}  Rde8 {[%clk 0:00:24]} 41. Bxd5+ {[%clk 0:00:05]}  Kh8 {[%clk 0:00:22]} 42. Be6 {[%clk 0:00:05]}  Nc6 {[%clk 0:00:13]} 43. Rxh6# {[%clk 0:00:04]} 1-0


[Site "https://www.chess.com"]

[Event "Titled Tuesday Blitz July 11 Early 2023"]
[White "only_strong_moves"]
[Black "Cardozo Munar, Carlos Eduardo"]
[BlackFideId "4409477"]
[WhiteElo "2512"]
[BlackElo "2306"]
[Result "1-0"]
[Round "2"]
[TimeControl "180+2"]
[Date "2023.07.11"]
[WhiteClock "0:01:51"]
[BlackClock "0:01:37"]
[Board "168"]

1. d4 {[%clk 0:03:00]}  d5 {[%clk 0:02:59]} 2. Nc3 {[%clk 0:03:01]}  Nf6 {[%clk 0:02:59]} 3. Bf4 {[%clk 0:03:02]}  Bf5 {[%clk 0:02:59]} 4. e3 {[%clk 0:03:02]}  e6 {[%clk 0:03:00]} 5. Nf3 {[%clk 0:03:02]}  Bd6 {[%clk 0:03:00]} 6. Ne5 {[%clk 0:03:02]}  Nbd7 {[%clk 0:03:00]} 7. Nxd7 {[%clk 0:02:21]}  Nxd7 {[%clk 0:02:52]} 8. g4 {[%clk 0:02:18]}  Bxf4 {[%clk 0:02:36]} 9. exf4 {[%clk 0:02:06]}  Bg6 {[%clk 0:02:31]} 10. h4 {[%clk 0:02:06]}  h5 {[%clk 0:02:30]} 11. g5 {[%clk 0:02:00]}  a6 {[%clk 0:02:27]} 12. Bd3 {[%clk 0:01:58]}  Bxd3 {[%clk 0:02:26]} 13. Qxd3 {[%clk 0:01:59]}  Qe7 {[%clk 0:02:27]} 14. O-O-O {[%clk 0:01:58]}  c5 {[%clk 0:02:27]} 15. Rhe1 {[%clk 0:01:55]}  cxd4 {[%clk 0:02:27]} 16. Nxd5 {[%clk 0:01:51]}  Qc5 {[%clk 0:02:23]} 17. Qxd4 {[%clk 0:01:51]}  Qxd4 {[%clk 0:02:23]} 18. Rxd4 {[%clk 0:01:52]}  O-O-O {[%clk 0:02:15]} 19. Nc3 {[%clk 0:01:51]}  Nc5 {[%clk 0:02:13]} 20. Rc4 {[%clk 0:01:51]}  b6 {[%clk 0:01:37]} 21. b4 {[%clk 0:01:51]} 1-0


[Site "https://www.chess.com"]

[Event "Titled Tuesday Blitz July 11 Early 2023"]
[White "AndresDelgado77"]
[Black "WindWhistler11"]
[WhiteElo "2304"]
[BlackElo "2511"]
[Result "0-1"]
[Round "2"]
[TimeControl "180+2"]
[Date "2023.07.11"]
[WhiteClock "0:00:00"]
[BlackClock "0:00:02"]
[Board "169"]

1. e4 {[%clk 0:02:57]}  e6 {[%clk 0:02:57]} 2. d4 {[%clk 0:02:56]}  d5 {[%clk 0:02:58]} 3. e5 {[%clk 0:02:57]}  c5 {[%clk 0:02:57]} 4. c3 {[%clk 0:02:57]}  Nc6 {[%clk 0:02:58]} 5. Nf3 {[%clk 0:02:58]}  Bd7 {[%clk 0:02:59]} 6. a3 {[%clk 0:02:57]}  c4 {[%clk 0:02:58]} 7. Be3 {[%clk 0:02:44]}  Na5 {[%clk 0:02:55]} 8. Nbd2 {[%clk 0:02:44]}  Qc7 {[%clk 0:02:55]} 9. h4 {[%clk 0:02:38]}  Ne7 {[%clk 0:02:56]} 10. h5 {[%clk 0:02:37]}  h6 {[%clk 0:02:56]} 11. g4 {[%clk 0:02:32]}  Nc8 {[%clk 0:02:49]} 12. g5 {[%clk 0:02:28]}  hxg5 {[%clk 0:02:34]} 13. Nxg5 {[%clk 0:02:26]}  Nb6 {[%clk 0:02:35]} 14. f4 {[%clk 0:02:12]}  f6 {[%clk 0:02:26]} 15. Ngf3 {[%clk 0:02:02]}  O-O-O {[%clk 0:02:21]} 16. Bh3 {[%clk 0:01:59]}  f5 {[%clk 0:02:19]} 17. Nh4 {[%clk 0:01:58]}  Be8 {[%clk 0:02:14]} 18. Ng6 {[%clk 0:01:57]}  Bxg6 {[%clk 0:02:01]} 19. hxg6 {[%clk 0:01:57]}  Rh6 {[%clk 0:01:53]} 20. Qf3 {[%clk 0:01:43]}  Be7 {[%clk 0:01:44]} 21. O-O-O {[%clk 0:01:43]}  Nb3+ {[%clk 0:01:24]} 22. Kb1 {[%clk 0:01:37]}  Na4 {[%clk 0:01:17]} 23. Bf1 {[%clk 0:01:25]}  Rxg6 {[%clk 0:01:13]} 24. Qh5 {[%clk 0:01:21]}  Rh6 {[%clk 0:01:10]} 25. Qf3 {[%clk 0:01:16]}  Rxh1 {[%clk 0:01:04]} 26. Qxh1 {[%clk 0:01:15]}  Bxa3 {[%clk 0:01:03]} 27. Nxb3 {[%clk 0:00:47]}  cxb3 {[%clk 0:00:59]} 28. Bc1 {[%clk 0:00:46]}  Bf8 {[%clk 0:00:39]} 29. Bb5 {[%clk 0:00:41]}  Nb6 {[%clk 0:00:35]} 30. Qh7 {[%clk 0:00:38]}  a6 {[%clk 0:00:32]} 31. Bd3 {[%clk 0:00:36]}  a5 {[%clk 0:00:32]} 32. Qg6 {[%clk 0:00:33]}  Qe7 {[%clk 0:00:25]} 33. Rh1 {[%clk 0:00:31]}  a4 {[%clk 0:00:24]} 34. Rh7 {[%clk 0:00:27]}  a3 {[%clk 0:00:24]} 35. bxa3 {[%clk 0:00:26]}  Na4 {[%clk 0:00:24]} 36. Bb2 {[%clk 0:00:26]}  Kb8 {[%clk 0:00:20]} 37. Qg2 {[%clk 0:00:22]}  Rc8 {[%clk 0:00:20]} 38. Qd2 {[%clk 0:00:19]}  Qc7 {[%clk 0:00:18]} 39. Bb5 {[%clk 0:00:15]}  Nb6 {[%clk 0:00:15]} 40. a4 {[%clk 0:00:14]}  Nc4 {[%clk 0:00:12]} 41. Qe2 {[%clk 0:00:13]}  Nxb2 {[%clk 0:00:10]} 42. Qxb2 {[%clk 0:00:13]}  Qa5 {[%clk 0:00:08]} 43. Bd7 {[%clk 0:00:11]}  Rxc3 {[%clk 0:00:07]} 44. Rh8 {[%clk 0:00:10]}  Re3 {[%clk 0:00:05]} 45. Rxf8+ {[%clk 0:00:08]}  Ka7 {[%clk 0:00:06]} 46. Qf2 {[%clk 0:00:00]}  Qc3 {[%clk 0:00:02]} 0-1


[Site "https://www.chess.com"]

[Event "Titled Tuesday Blitz July 11 Early 2023"]
[White "Vifleemskaia, Svetlana"]
[Black "Tokhirjonova, Gulrukhbegim"]
[WhiteFideId "4129490"]
[BlackFideId "14203626"]
[WhiteElo "2298"]
[BlackElo "2507"]
[Result "1-0"]
[Round "2"]
[TimeControl "180+2"]
[Date "2023.07.11"]
[WhiteClock "0:01:22"]
[BlackClock "0:01:05"]
[Board "173"]

1. d4 {[%clk 0:02:51]}  Nf6 {[%clk 0:02:59]} 2. c4 {[%clk 0:02:49]}  e6 {[%clk 0:03:00]} 3. Nc3 {[%clk 0:02:48]}  Bb4 {[%clk 0:02:59]} 4. e3 {[%clk 0:02:48]}  b6 {[%clk 0:02:58]} 5. Ne2 {[%clk 0:02:49]}  Bb7 {[%clk 0:02:57]} 6. a3 {[%clk 0:02:49]}  Be7 {[%clk 0:02:57]} 7. d5 {[%clk 0:02:49]}  exd5 {[%clk 0:02:56]} 8. cxd5 {[%clk 0:02:50]}  O-O {[%clk 0:02:56]} 9. g3 {[%clk 0:02:50]}  a5 {[%clk 0:02:53]} 10. Bg2 {[%clk 0:02:50]}  Na6 {[%clk 0:02:53]} 11. O-O {[%clk 0:02:45]}  d6 {[%clk 0:02:49]} 12. Nd4 {[%clk 0:02:39]}  Nc5 {[%clk 0:02:45]} 13. Nc6 {[%clk 0:02:37]}  Bxc6 {[%clk 0:02:41]} 14. dxc6 {[%clk 0:02:37]}  Re8 {[%clk 0:02:42]} 15. Bd2 {[%clk 0:02:16]}  Bf8 {[%clk 0:02:42]} 16. b4 {[%clk 0:02:15]}  axb4 {[%clk 0:02:41]} 17. axb4 {[%clk 0:02:16]}  Rxa1 {[%clk 0:02:41]} 18. Qxa1 {[%clk 0:02:15]}  Nb3 {[%clk 0:02:25]} 19. Qb2 {[%clk 0:02:14]}  Nxd2 {[%clk 0:02:25]} 20. Qxd2 {[%clk 0:02:14]}  g6 {[%clk 0:02:25]} 21. Ra1 {[%clk 0:01:57]}  Bg7 {[%clk 0:02:23]} 22. Ra2 {[%clk 0:01:56]}  h5 {[%clk 0:02:20]} 23. h3 {[%clk 0:01:55]}  Re5 {[%clk 0:02:17]} 24. Qd3 {[%clk 0:01:48]}  Nh7 {[%clk 0:02:01]} 25. Qa6 {[%clk 0:01:44]}  Nf8 {[%clk 0:01:56]} 26. Qb7 {[%clk 0:01:36]}  Re8 {[%clk 0:01:50]} 27. Nd5 {[%clk 0:01:30]}  Ne6 {[%clk 0:01:47]} 28. Ra7 {[%clk 0:01:29]}  Re7 {[%clk 0:01:11]} 29. Ra8 {[%clk 0:01:26]}  Re8 {[%clk 0:01:06]} 30. Rxd8 {[%clk 0:01:24]}  Rxd8 {[%clk 0:01:07]} 31. Nxc7 {[%clk 0:01:23]}  d5 {[%clk 0:01:05]} 32. Nxe6 {[%clk 0:01:22]}  fxe6 {[%clk 0:01:05]} 33. c7 {[%clk 0:01:22]} 1-0


[Site "https://www.chess.com"]

[Event "Titled Tuesday Blitz July 11 Early 2023"]
[White "brm72"]
[Black "Ardila, Oscar Humberto"]
[BlackFideId "4404742"]
[WhiteElo "2507"]
[BlackElo "2297"]
[Result "1-0"]
[Round "2"]
[TimeControl "180+2"]
[Date "2023.07.11"]
[WhiteClock "0:01:47"]
[BlackClock "0:00:11"]
[Board "174"]

1. e4 {[%clk 0:03:00]}  e5 {[%clk 0:02:59]} 2. Nf3 {[%clk 0:03:01]}  Nf6 {[%clk 0:02:59]} 3. Nxe5 {[%clk 0:02:58]}  d6 {[%clk 0:02:59]} 4. Nf3 {[%clk 0:02:58]}  Nxe4 {[%clk 0:02:59]} 5. Nc3 {[%clk 0:02:59]}  Nxc3 {[%clk 0:02:59]} 6. dxc3 {[%clk 0:03:00]}  Be7 {[%clk 0:03:00]} 7. Bf4 {[%clk 0:03:00]}  O-O {[%clk 0:03:00]} 8. Qd2 {[%clk 0:03:01]}  Nd7 {[%clk 0:03:01]} 9. O-O-O {[%clk 0:03:01]}  Nf6 {[%clk 0:03:01]} 10. Kb1 {[%clk 0:02:58]}  d5 {[%clk 0:02:59]} 11. Bd3 {[%clk 0:02:58]}  c5 {[%clk 0:02:59]} 12. Ne5 {[%clk 0:02:49]}  Be6 {[%clk 0:02:57]} 13. f3 {[%clk 0:02:48]}  Qa5 {[%clk 0:02:56]} 14. g4 {[%clk 0:02:40]}  c4 {[%clk 0:02:56]} 15. Be2 {[%clk 0:02:39]}  Rfc8 {[%clk 0:02:52]} 16. h4 {[%clk 0:02:33]}  b5 {[%clk 0:02:51]} 17. h5 {[%clk 0:02:29]}  b4 {[%clk 0:02:47]} 18. cxb4 {[%clk 0:02:30]}  Bxb4 {[%clk 0:02:45]} 19. c3 {[%clk 0:02:30]}  Bf8 {[%clk 0:02:23]} 20. g5 {[%clk 0:02:31]}  Ne8 {[%clk 0:02:22]} 21. g6 {[%clk 0:02:31]}  f6 {[%clk 0:02:08]} 22. gxh7+ {[%clk 0:02:21]}  Kxh7 {[%clk 0:02:09]} 23. Ng6 {[%clk 0:02:21]}  Bf5+ {[%clk 0:01:55]} 24. Ka1 {[%clk 0:02:18]}  Rc6 {[%clk 0:01:39]} 25. Nxf8+ {[%clk 0:02:15]}  Kg8 {[%clk 0:01:40]} 26. Qxd5+ {[%clk 0:02:05]}  Qxd5 {[%clk 0:01:40]} 27. Rxd5 {[%clk 0:02:06]}  Bd3 {[%clk 0:01:29]} 28. Bxd3 {[%clk 0:01:55]}  cxd3 {[%clk 0:01:29]} 29. Ng6 {[%clk 0:01:56]}  Nc7 {[%clk 0:01:21]} 30. Bxc7 {[%clk 0:01:53]}  Rxc7 {[%clk 0:01:21]} 31. Rxd3 {[%clk 0:01:54]}  Re8 {[%clk 0:01:20]} 32. Rhd1 {[%clk 0:01:53]}  Kf7 {[%clk 0:01:17]} 33. Rd7+ {[%clk 0:01:53]}  Rxd7 {[%clk 0:01:17]} 34. Rxd7+ {[%clk 0:01:53]}  Ke6 {[%clk 0:01:18]} 35. Rxg7 {[%clk 0:01:54]}  Kf5 {[%clk 0:01:17]} 36. a3 {[%clk 0:01:52]}  Re1+ {[%clk 0:01:16]} 37. Ka2 {[%clk 0:01:52]}  Rh1 {[%clk 0:01:14]} 38. Rxa7 {[%clk 0:01:51]}  Rxh5 {[%clk 0:01:12]} 39. Ra5+ {[%clk 0:01:45]}  Kxg6 {[%clk 0:01:13]} 40. Rxh5 {[%clk 0:01:46]}  Kxh5 {[%clk 0:01:13]} 41. a4 {[%clk 0:01:46]}  Kg5 {[%clk 0:01:14]} 42. a5 {[%clk 0:01:47]}  Kf4 {[%clk 0:01:15]} 43. a6 {[%clk 0:01:48]}  Kxf3 {[%clk 0:01:16]} 44. a7 {[%clk 0:01:48]}  Ke2 {[%clk 0:01:17]} 45. a8=Q {[%clk 0:01:49]}  f5 {[%clk 0:01:18]} 46. Qg2+ {[%clk 0:01:49]}  Ke3 {[%clk 0:00:11]} 47. b4 {[%clk 0:01:47]} 1-0


[Site "https://www.chess.com"]